bitfinex/quotes_BTCUSD_20250718
["timestamp","ask_amount","ask_price","bid_price","bid_amount"]
[1752862527488,0.84507321,117460.0,117450.0,0.02502344]
[1752862527698,0.84801321,117460.0,117450.0,0.21233681]
[1752862527922,0.19124641,117460.0,117450.0,0.20434101]
[1752862528156,0.15984598,117460.0,117450.0,0.2454711]
[1752862528616,0.17700031,117460.0,117450.0,0.20629101]
[1752862528831,0.16848677,117460.0,117450.0,0.20629101]
[1752862529332,0.17700008,117460.0,117450.0,0.20629101]
[1752862529571,0.17700016,117460.0,117450.0,0.231386]
[1752862529807,0.19290016,117460.0,117450.0,0.20629101]
[1752862530014,0.19390016,117460.0,117450.0,0.20629101]
[1752862530220,0.36417154,117460.0,117450.0,0.19777726]
[1752862530434,0.20138728,117460.0,117450.0,0.20434108]
[1752862530653,0.37165801,117460.0,117450.0,0.19582726]
[1752862530875,0.38017154,117460.0,117450.0,0.19582726]
[1752862531105,0.37165859,117460.0,117450.0,0.19582726]
[1752862531317,0.36314542,117460.0,117450.0,0.17879933]
[1752862531529,0.35463203,117460.0,117450.0,0.17879933]
[1752862531984,0.84112767,117460.0,117450.0,0.1873133]
[1752862532442,0.18436108,117460.0,117450.0,0.19582705]
[1752862532665,0.68788328,117460.0,117450.0,0.19582705]
[1752862532913,0.68036982,117460.0,117450.0,0.19582705]
[1752862533140,0.17787375,117460.0,117450.0,0.19582705]
[1752862533370,0.05714038,117460.0,117450.0,0.19783705]
[1752862533582,0.20373384,117460.0,117450.0,0.19783705]
[1752862534013,0.20373449,117460.0,117450.0,0.19783705]
[1752862534244,0.37400522,117460.0,117450.0,0.19783719]
[1752862534459,0.1781944,117460.0,117450.0,0.20635094]
[1752862534681,0.16229403,117460.0,117450.0,0.20635094]
[1752862535120,0.17080742,117460.0,117450.0,0.20635094]
[1752862535346,0.17932088,117460.0,117450.0,0.20635094]
[1752862535597,0.37327815,117460.0,117450.0,0.1873133]
[1752862535809,0.85126077,117460.0,117450.0,0.17879933]
[1752862536032,0.85197187,117460.0,117450.0,0.17879933]
[1752862536640,0.85197187,117460.0,117450.0,0.18731337]
[1752862537053,0.85197187,117460.0,117450.0,0.1787994]
[1752862537285,0.85197187,117460.0,117450.0,0.18731351]
[1752862537501,0.84345863,117460.0,117450.0,0.18731351]
[1752862537696,0.84345863,117460.0,117450.0,0.19582755]
[1752862537930,0.35696299,117460.0,117450.0,0.18731351]
[1752862538179,0.84345863,117460.0,117450.0,0.18731351]
[1752862538385,0.92896891,117460.0,117450.0,0.18731351]
[1752862538796,0.92896891,117460.0,117450.0,0.19582755]
[1752862539332,0.92896891,117460.0,117450.0,0.20434152]
[1752862539546,0.92896891,117460.0,117450.0,0.21285541]
[1752862540213,0.92896891,117460.0,117450.0,0.20434152]
[1752862540412,0.92896891,117460.0,117450.0,0.19582755]
[1752862540724,0.00922507,117450.0,117440.0,0.22199059]
[1752862540936,0.0060011,117450.0,117440.0,0.22199059]
[1752862541116,0.01451492,117450.0,117440.0,0.22400059]
[1752862541343,0.03154249,117450.0,117440.0,0.36232059]
[1752862541745,0.04005653,117450.0,117440.0,0.36232059]
[1752862541929,0.04005653,117450.0,117440.0,0.22400059]
[1752862542495,0.01451478,117450.0,117440.0,0.22400059]
[1752862542681,0.02302853,117450.0,117440.0,0.22400059]
[1752862542882,0.0315425,117450.0,117440.0,0.22500059]
[1752862543301,0.04005661,117450.0,117440.0,0.22500059]
[1752862543928,0.03154242,117450.0,117440.0,0.22500059]
[1752862544556,0.02302853,117450.0,117440.0,0.22500059]
[1752862544712,0.01451478,117450.0,117440.0,0.22500059]
[1752862545052,0.0315425,117450.0,117440.0,0.22500059]
[1752862545253,0.02302853,117450.0,117440.0,0.22500059]
[1752862545481,0.04005653,117450.0,117440.0,0.22500059]
[1752862546035,0.72833739,117450.0,117440.0,0.17979189]
[1752862546242,0.71982414,117450.0,117440.0,0.17129972]
[1752862546483,0.2333285,117450.0,117440.0,0.19684401]
[1752862546688,0.54953892,117450.0,117440.0,0.20535848]
[1752862546862,0.0545286,117450.0,117440.0,0.20535848]
[1752862547067,0.05605675,117450.0,117440.0,0.20535848]
[1752862547315,0.04754264,117450.0,117440.0,0.21370097]
[1752862547758,0.30935325,117450.0,117440.0,0.19667195]
[1752862547970,0.29232589,117450.0,117440.0,0.001]
[1752862548209,0.27028527,117450.0,117440.0,0.20535877]
[1752862548388,0.32371867,117450.0,117440.0,0.20535877]
[1752862548611,0.8272426,117450.0,117440.0,0.20535877]
[1752862548829,0.81872842,117450.0,117440.0,0.20535877]
[1752862549035,0.34074696,117450.0,117440.0,0.20535877]
[1752862549243,0.32371867,117450.0,117440.0,0.20535877]
[1752862549384,0.33223278,117450.0,117440.0,0.20535877]
[1752862549793,0.34074696,117450.0,117440.0,0.20535885]
[1752862549999,0.34074696,117450.0,117440.0,0.21387332]
[1752862550201,0.32371867,117450.0,117440.0,0.21387332]
[1752862550482,0.34074682,117450.0,117440.0,0.21387332]
[1752862551520,0.45759886,117450.0,117440.0,0.15603882]
[1752862551723,0.45759886,117450.0,117430.0,0.20441415]
[1752862551724,0.04994012,117440.0,117430.0,0.20441415]
[1752862551950,0.53857547,117440.0,117430.0,0.20642415]
[1752862552144,0.04459438,117440.0,117430.0,0.20642415]
[1752862552562,0.04774438,117440.0,117430.0,0.20642415]
[1752862552785,0.03071543,117440.0,117430.0,0.20642415]
[1752862553005,0.0028511,117440.0,117430.0,0.29218377]
[1752862553212,0.0007111,117440.0,117430.0,0.72421979]
[1752862553439,0.0007111,117440.0,117430.0,0.71130979]
[1752862553770,0.0007111,117440.0,117430.0,0.22481415]
[1752862553959,0.0007111,117440.0,117430.0,0.22581415]
[1752862554191,0.0007111,117440.0,117430.0,0.21261415]
[1752862555071,0.0007111,117450.0,117440.0,0.22684379]
[1752862555249,0.0007111,117450.0,117440.0,0.71853943]
[1752862555743,0.0007111,117450.0,117440.0,0.23204379]
[1752862555954,0.0007111,117450.0,117440.0,0.71853943]
[1752862556434,0.0007111,117450.0,117440.0,0.85945943]
[1752862556932,0.0007111,117450.0,117440.0,0.37296379]
[1752862557145,0.0092247,117450.0,117440.0,0.34196379]
[1752862557351,0.0154002,117450.0,117440.0,0.33877379]
[1752862557560,0.0154002,117450.0,117440.0,0.33945379]
[1752862557772,0.00922478,117450.0,117440.0,0.33945379]
[1752862557984,0.01773852,117450.0,117440.0,0.33945379]
[1752862558185,0.01773845,117450.0,117440.0,0.33945379]
[1752862558984,0.0092247,117450.0,117440.0,0.33945379]
[1752862559190,0.07171248,117450.0,117440.0,0.33945379]
[1752862559395,0.0007111,117450.0,117440.0,0.33945379]
[1752862560305,0.0007111,117450.0,117440.0,0.34264379]
[1752862561667,0.0007111,117450.0,117440.0,0.35814379]
[1752862563087,0.0092247,117450.0,117440.0,0.34264379]
[1752862563305,0.0007111,117450.0,117440.0,0.34264379]
[1752862563521,0.0092247,117450.0,117440.0,0.34264379]
[1752862563732,0.0007111,117450.0,117440.0,0.34264379]
[1752862565623,0.0007111,117450.0,117440.0,0.33800713]
[1752862566303,0.03133271,117450.0,117440.0,0.18732947]
[1752862566549,0.06383264,117450.0,117440.0,0.20435863]
[1752862566772,0.0191711,117450.0,117440.0,0.20635863]
[1752862567000,0.0007111,117450.0,117440.0,0.72697427]
[1752862568132,0.0007111,117450.0,117440.0,0.24047863]
[1752862568396,0.0007111,117450.0,117440.0,0.86841427]
[1752862568622,0.0007111,117450.0,117440.0,0.38187863]
[1752862568844,0.0007111,117450.0,117440.0,0.86837427]
[1752862569561,0.00083887,117460.0,117440.0,0.85134423]
[1752862569789,0.0007111,117450.0,117440.0,0.84832423]
[1752862569980,0.01786492,117460.0,117450.0,0.19582712]
[1752862570187,0.00935182,117460.0,117450.0,0.19782712]
[1752862570448,0.00935182,117460.0,117450.0,0.20084712]
[1752862571417,0.01986492,117460.0,117450.0,0.20084712]
[1752862571831,0.01235182,117460.0,117450.0,0.20084712]
[1752862572050,0.02086492,117460.0,117450.0,0.20084712]
[1752862572282,0.01235182,117460.0,117450.0,0.20084712]
[1752862572730,0.04325182,117460.0,117450.0,0.20084712]
[1752862573174,0.00312777,117460.0,117450.0,0.68734276]
[1752862573390,0.01235175,117460.0,117450.0,0.23184712]
[1752862573649,0.00383887,117460.0,117450.0,0.21594712]
[1752862574083,0.00012777,117460.0,117450.0,0.73358361]
[1752862574330,0.00012777,117460.0,117450.0,1.15909389]
[1752862574552,0.0268111,117500.0,117490.0,0.18828046]
[1752862574776,0.01005007,117500.0,117490.0,0.33414046]
[1752862575031,0.01005007,117500.0,117490.0,0.92179572]
[1752862575248,0.01076117,117500.0,117490.0,0.93759572]
[1752862575485,0.01076117,117500.0,117490.0,0.45110008]
[1752862575678,0.01005007,117500.0,117490.0,0.46564093]
[1752862575885,0.01005007,117500.0,117490.0,0.37988131]
[1752862576557,0.01005007,117500.0,117490.0,0.40510023]
[1752862577020,0.01005007,117500.0,117490.0,0.40710023]
[1752862577270,0.51084694,117500.0,117490.0,0.21549938]
[1752862577511,0.03214117,117500.0,117490.0,0.22397371]
[1752862577730,0.03214117,117500.0,117490.0,0.22597371]
[1752862577959,0.01272117,117500.0,117490.0,0.22597371]
[1752862578528,0.02123115,117500.0,117490.0,0.22597371]
[1752862578808,0.0482612,117500.0,117490.0,0.22597371]
[1752862579098,0.0567714,117500.0,117490.0,0.22597371]
[1752862579360,0.0652816,117500.0,117490.0,0.22597371]
[1752862579632,0.03124117,117500.0,117490.0,0.22597371]
[1752862579908,0.01076117,117500.0,117490.0,0.22899371]
[1752862580422,0.01076117,117500.0,117490.0,0.81721477]
[1752862580423,0.01005007,117500.0,117490.0,0.81721477]
[1752862580425,0.1506923,117510.0,117500.0,0.55028464]
[1752862580426,0.1499812,117510.0,117500.0,0.55028464]
[1752862580703,0.01,117510.0,117500.0,1.30045056]
[1752862581762,0.0162,117560.0,117550.0,0.19566053]
[1752862582030,0.06711128,117570.0,117560.0,0.19564389]
[1752862582259,0.01771963,117580.0,117570.0,0.19562725]
[1752862582485,0.04252212,117580.0,117570.0,0.33814725]
[1752862582721,0.20728726,117580.0,117570.0,0.17211142]
[1752862582952,0.21830285,117580.0,117570.0,0.31063142]
[1752862583189,0.00317202,117580.0,117570.0,0.38792406]
[1752862583428,0.00121202,117580.0,117570.0,0.39094406]
[1752862583664,0.00150092,117580.0,117570.0,0.39094406]
[1752862583890,0.00150092,117580.0,117570.0,0.39927221]
[1752862584370,0.00150092,117580.0,117570.0,0.41381306]
[1752862584598,0.00121202,117580.0,117570.0,0.41381306]
[1752862585264,0.00050092,117580.0,117570.0,0.41381306]
[1752862585495,0.00050092,117580.0,117570.0,1.24400674]
[1752862585725,0.00150092,117580.0,117570.0,0.85452334]
[1752862585970,0.00050092,117580.0,117570.0,0.69880334]
[1752862586197,0.00050092,117580.0,117570.0,0.70387618]
[1752862586643,0.00050092,117580.0,117570.0,1.19406986]
[1752862586885,0.00050092,117580.0,117570.0,1.19506986]
[1752862587106,0.00050092,117580.0,117570.0,0.72207618]
[1752862587333,0.00050092,117580.0,117570.0,0.8078358]
[1752862587594,0.00050092,117580.0,117570.0,0.8068358]
[1752862587812,0.00050092,117580.0,117570.0,1.28382948]
[1752862588028,0.00050092,117580.0,117570.0,0.70815618]
[1752862589298,0.00050092,117580.0,117570.0,0.72385618]
[1752862589514,0.00050092,117580.0,117570.0,1.14372014]
[1752862589731,0.00050092,117580.0,117570.0,1.30046014]
[1752862589944,0.00050092,117580.0,117570.0,1.38621976]
[1752862591005,0.00050092,117580.0,117570.0,0.91122608]
[1752862591220,0.00050092,117580.0,117570.0,1.38621976]
[1752862591881,1e-08,117580.0,117570.0,1.38621976]
[1752862592333,0.0004,117590.0,117580.0,1.05734514]
[1752862592334,1e-08,117590.0,117580.0,1.05734514]
[1752862592565,0.0001279,117590.0,117580.0,1.17259193]
[1752862593244,0.0001279,117590.0,117580.0,1.29701193]
[1752862593471,0.0001279,117590.0,117580.0,1.30001193]
[1752862593702,0.0001279,117590.0,117580.0,1.30401193]
[1752862595683,0.0001279,117590.0,117580.0,1.16369193]
[1752862595905,1e-08,117590.0,117580.0,1.31935193]
[1752862597499,1e-08,117590.0,117580.0,1.31931193]
[1752862600585,1e-08,117600.0,117590.0,0.22663483]
[1752862600802,1e-08,117600.0,117590.0,0.99848336]
[1752862601034,1e-08,117600.0,117590.0,1.39284226]
[1752862601493,0.0004,117620.0,117610.0,0.53556071]
[1752862601701,0.0004,117620.0,117610.0,1.27006467]
[1752862602177,0.0004,117620.0,117610.0,1.27313467]
[1752862602390,0.0004,117620.0,117610.0,0.88390061]
[1752862602612,0.0004,117620.0,117610.0,1.35889429]
[1752862603475,0.0004,117620.0,117610.0,1.35989429]
[1752862604120,0.0004,117620.0,117610.0,1.37443514]
[1752862604548,0.0004,117630.0,117620.0,1.02673776]
[1752862604771,0.00055007,117630.0,117620.0,1.34068766]
[1752862604984,0.00055007,117630.0,117620.0,1.35829851]
[1752862605216,0.00055007,117630.0,117620.0,1.37339851]
[1752862605434,1e-08,117630.0,117620.0,1.37339851]
[1752862606102,0.00100001,117630.0,117620.0,1.37339851]
[1752862606726,0.00100001,117630.0,117620.0,1.37439851]
[1752862606952,1e-08,117630.0,117620.0,1.37439851]
[1752862607155,1e-08,117630.0,117620.0,1.37339851]
[1752862607573,1e-08,117630.0,117620.0,1.37539851]
[1752862607713,1e-08,117630.0,117620.0,1.37839851]
[1752862607923,1e-08,117630.0,117620.0,1.36989707]
[1752862608492,0.03189111,117660.0,117650.0,0.19549423]
[1752862608633,0.03344775,117660.0,117650.0,0.37538159]
[1752862608850,0.00226774,117660.0,117650.0,0.37738159]
[1752862609066,0.00226774,117660.0,117650.0,0.85237527]
[1752862609259,0.00012774,117660.0,117650.0,0.97224893]
[1752862609492,0.00012774,117660.0,117650.0,0.97531893]
[1752862609694,0.00212774,117660.0,117650.0,0.97531893]
[1752862609909,0.00212774,117660.0,117650.0,0.97224893]
[1752862611591,0.00212774,117660.0,117650.0,0.97531893]
[1752862612394,0.00212774,117660.0,117650.0,1.33101893]
[1752862612609,0.00212774,117660.0,117650.0,1.34601893]
[1752862613440,0.00212774,117660.0,117650.0,1.82201261]
[1752862613441,0.00012774,117660.0,117650.0,1.82201261]
[1752862613647,0.00785995,117680.0,117670.0,0.21000185]
[1752862613859,0.19538161,117700.0,117690.0,0.19542778]
[1752862614078,0.19538161,117700.0,117680.0,0.16993955]
[1752862614079,0.04890409,117690.0,117680.0,0.16993955]
[1752862614280,0.07058242,117690.0,117680.0,0.34468915]
[1752862614492,0.22735527,117680.0,117670.0,0.17846512]
[1752862614706,0.34019857,117680.0,117670.0,0.14076]
[1752862614943,0.04110922,117670.0,117660.0,0.17847782]
[1752862615162,0.05492669,117670.0,117660.0,0.34481398]
[1752862615375,0.07192286,117670.0,117660.0,0.33631543]
[1752862615579,0.07192279,117670.0,117660.0,0.34489398]
[1752862615810,0.07192279,117670.0,117660.0,0.36632333]
[1752862616015,0.04842879,117670.0,117660.0,0.36632333]
[1752862616427,0.0399311,117670.0,117660.0,0.36632333]
[1752862616636,0.03922,117670.0,117660.0,0.36632333]
[1752862616858,0.04842879,117670.0,117660.0,0.36632333]
[1752862617280,0.03922,117670.0,117660.0,0.36632333]
[1752862617480,0.03922,117670.0,117660.0,0.34489398]
[1752862617692,0.002,117670.0,117660.0,0.83642851]
[1752862617901,0.002,117670.0,117660.0,0.92500879]
[1752862618797,0.0167111,117680.0,117670.0,0.195461]
[1752862619009,0.0188511,117680.0,117670.0,0.28322062]
[1752862619234,0.10595271,117700.0,117690.0,0.19542778]
[1752862619471,0.08097883,117700.0,117690.0,0.82804231]
[1752862619723,0.00050005,117700.0,117690.0,0.91662259]
[1752862619946,0.00050005,117700.0,117690.0,1.34238221]
[1752862620171,0.00050005,117700.0,117690.0,0.86738853]
[1752862620393,0.03200005,117700.0,117690.0,1.19623221]
[1752862620627,0.03715005,117700.0,117690.0,0.72223853]
[1752862620862,0.04564557,117700.0,117690.0,0.18793139]
[1752862621106,0.22477667,117700.0,117690.0,0.31249797]
[1752862621334,0.22477667,117700.0,117690.0,0.001]
[1752862621566,0.78528063,117700.0,117690.0,0.001]
[1752862621801,1.13099836,117700.0,117690.0,0.001]
[1752862622270,0.18694713,117680.0,117670.0,0.14164]
[1752862622488,0.18694713,117680.0,117660.0,0.20397376]
[1752862622489,0.0007111,117670.0,117660.0,0.19547521]
[1752862622716,0.06040467,117670.0,117660.0,0.34573376]
[1752862622930,0.05190669,117670.0,117660.0,0.34573376]
[1752862623162,0.0349111,117670.0,117660.0,0.40074305]
[1752862623823,0.05190655,117670.0,117660.0,0.40174305]
[1752862624033,0.0349111,117670.0,117660.0,0.40174305]
[1752862624243,0.0349111,117670.0,117660.0,0.34673376]
[1752862624964,0.0370611,117670.0,117660.0,0.34673376]
[1752862625388,0.03635,117670.0,117660.0,0.34673376]
[1752862625603,0.0370611,117670.0,117660.0,0.34673376]
[1752862625819,0.04555879,117670.0,117660.0,0.34673376]
[1752862626041,0.04555893,117670.0,117660.0,0.34673376]
[1752862626281,0.07105337,117670.0,117660.0,0.34673384]
[1752862626500,0.0625551,117670.0,117660.0,0.35523239]
[1752862626715,0.07105337,117670.0,117660.0,0.35523239]
[1752862626913,0.05405691,117670.0,117660.0,0.35523239]
[1752862627140,0.06255503,117670.0,117660.0,0.35523239]
[1752862627354,0.0635551,117670.0,117660.0,0.35523239]
[1752862627599,0.0625551,117670.0,117660.0,0.35435239]
[1752862628034,0.06255503,117670.0,117660.0,0.35435239]
[1752862628488,0.18697892,117660.0,117650.0,0.17849553]
[1752862628731,0.00849942,117650.0,117640.0,0.18701042]
[1752862628973,0.00849942,117650.0,117640.0,0.34347127]
[1752862628974,0.03744862,117650.0,117640.0,0.34347127]
[1752862629209,0.06204775,117650.0,117640.0,0.68347127]
[1752862629659,0.05354833,117650.0,117640.0,0.68359901]
[1752862629893,0.03755,117650.0,117640.0,0.72307542]
[1752862630136,0.03755,117650.0,117640.0,0.58115542]
[1752862630363,0.03755,117650.0,117640.0,0.72307542]
[1752862630598,0.04604928,117650.0,117640.0,0.68359901]
[1752862630851,0.0545487,117650.0,117640.0,0.68459901]
[1752862631299,0.03755,117650.0,117640.0,0.68459901]
[1752862632161,0.00315,117650.0,117640.0,0.68675901]
[1752862632402,0.001,117650.0,117640.0,0.77251863]
[1752862632609,0.001,117650.0,117640.0,1.24751231]
[1752862634199,0.001,117650.0,117640.0,0.86115891]
[1752862634437,0.001,117650.0,117640.0,1.33615259]
[1752862634669,0.001,117650.0,117640.0,0.86107891]
[1752862635123,0.001,117650.0,117640.0,1.33607259]
[1752862635565,0.001,117650.0,117640.0,0.77531929]
[1752862636264,0.00315,117650.0,117640.0,0.54483901]
[1752862636482,0.01975,117650.0,117640.0,0.68667901]
[1752862636691,0.02824928,117650.0,117640.0,0.68667901]
[1752862637139,0.04524834,117650.0,117640.0,0.68667901]
[1752862637356,0.22445497,117650.0,117640.0,0.52179837]
[1752862637627,0.23535569,117650.0,117640.0,0.67851887]
[1752862637853,0.23535569,117650.0,117640.0,0.67001873]
[1752862638094,0.22685627,117650.0,117640.0,0.66151837]
[1752862638318,0.21835663,117650.0,117640.0,0.00112774]
[1752862638779,0.77886059,117650.0,117640.0,0.14292774]
[1752862639233,0.30286691,117650.0,117640.0,0.14292774]
[1752862639450,0.30486691,117650.0,117640.0,0.14192774]
[1752862639906,0.30286691,117650.0,117640.0,0.14192774]
[1752862640127,0.30686691,117650.0,117640.0,0.14192774]
[1752862640774,0.30686691,117650.0,117640.0,0.32043837]
[1752862640985,0.30686691,117650.0,117640.0,0.14192774]
[1752862641210,0.29836713,117650.0,117640.0,0.14192774]
[1752862641859,0.29936713,117650.0,117640.0,0.14192774]
[1752862645268,0.23935598,117650.0,117640.0,0.23618787]
[1752862645482,0.23085634,117650.0,117640.0,0.14192774]
[1752862647033,0.23085634,117650.0,117640.0,0.32043837]
[1752862647256,0.23085634,117650.0,117640.0,0.32893873]
[1752862647953,0.23085634,117650.0,117640.0,0.42319864]
[1752862648175,0.23085634,117650.0,117640.0,0.34593909]
[1752862648396,0.23085634,117650.0,117640.0,0.32893873]
[1752862648626,0.23085634,117650.0,117640.0,0.32043845]
[1752862648820,0.22235663,117650.0,117640.0,0.32043845]
[1752862649271,0.21385685,117650.0,117640.0,0.15042825]
[1752862649486,0.21385685,117650.0,117640.0,0.00862825]
[1752862649695,0.21385685,117650.0,117640.0,0.32019845]
[1752862649896,0.22235649,117650.0,117640.0,0.32869874]
[1752862650121,0.22235649,117650.0,117640.0,0.33719896]
[1752862650585,0.22235649,117650.0,117640.0,0.32869874]
[1752862651022,0.22235649,117650.0,117640.0,0.32869888]
[1752862651227,0.21385685,117650.0,117640.0,0.15014825]
[1752862651569,0.21385685,117650.0,117640.0,0.32015845]
[1752862652571,0.21385685,117650.0,117640.0,0.32865888]
[1752862652797,0.21385685,117650.0,117640.0,0.33715917]
[1752862653057,0.21385685,117650.0,117640.0,0.35415953]
[1752862653724,0.21385685,117650.0,117640.0,0.33715917]
[1752862653967,0.333918,117650.0,117640.0,0.00012774]
[1752862654201,0.26680672,117650.0,117640.0,0.00012774]
[1752862654432,0.352317,117650.0,117640.0,0.00012774]
[1752862654655,0.82731068,117650.0,117640.0,0.00012774]
[1752862654883,0.352317,117650.0,117640.0,0.00012774]
[1752862655080,0.30346713,117650.0,117640.0,0.00012774]
[1752862655362,0.77846081,117650.0,117640.0,0.00012774]
[1752862655607,0.30346713,117650.0,117640.0,0.00012774]
[1752862655831,0.77846081,117650.0,117640.0,0.00012774]
[1752862658640,0.30346713,117650.0,117640.0,0.00012774]
[1752862660175,0.21795685,117650.0,117640.0,0.00012774]
[1752862661032,0.21795685,117650.0,117640.0,0.14128774]
[1752862661180,0.21795685,117650.0,117640.0,0.14978825]
[1752862661392,0.21795685,117650.0,117640.0,0.14128774]
[1752862662804,0.0163603,117650.0,117640.0,0.33894895]
[1752862663017,0.03970922,117650.0,117640.0,0.38333036]
[1752862663249,0.03970893,117650.0,117640.0,0.35899902]
[1752862663470,0.0142103,117650.0,117640.0,0.35899902]
[1752862663716,0.02270958,117650.0,117640.0,0.35899902]
[1752862663919,0.03120936,117650.0,117640.0,0.35899902]
[1752862664141,0.02270972,117650.0,117640.0,0.35899902]
[1752862664569,0.01770965,117650.0,117640.0,0.35899902]
[1752862664779,0.01970965,117650.0,117640.0,0.35899902]
[1752862664994,0.01970958,117650.0,117640.0,0.35899902]
[1752862665225,0.02820907,117650.0,117640.0,0.35899902]
[1752862665451,0.02820907,117650.0,117640.0,0.41065892]
[1752862665695,0.028209,117650.0,117640.0,0.35594902]
[1752862666786,0.01970958,117650.0,117640.0,0.35594902]
[1752862667016,0.01970958,117650.0,117640.0,0.35899902]
[1752862667439,0.01121038,117650.0,117640.0,0.35899902]
[1752862667649,0.01121038,117650.0,117640.0,0.40783551]
[1752862668406,0.0027111,117650.0,117640.0,0.40783551]
[1752862668626,0.0027111,117650.0,117640.0,0.43893551]
[1752862669276,0.01121023,117650.0,117640.0,0.43893551]
[1752862670017,0.0027111,117650.0,117640.0,0.43893551]
[1752862670441,0.0112103,117650.0,117640.0,0.43893551]
[1752862670668,0.0027111,117650.0,117640.0,0.43893551]
[1752862671038,0.01121023,117650.0,117640.0,0.43893551]
[1752862671227,0.0027111,117650.0,117640.0,0.43893551]
[1752862671449,0.02820885,117650.0,117640.0,0.43893551]
[1752862671642,0.01970943,117650.0,117640.0,0.37409902]
[1752862671850,0.02820878,117650.0,117640.0,0.37409902]
[1752862672519,0.02820871,117650.0,117640.0,0.37409902]
[1752862673451,0.03670813,117650.0,117640.0,0.37409902]
[1752862673870,0.02820871,117650.0,117640.0,0.37409902]
[1752862674302,0.03670806,117650.0,117640.0,0.43005131]
[1752862674503,0.04520748,117650.0,117640.0,0.43005131]
[1752862675221,0.04520748,117650.0,117640.0,0.37409902]
[1752862675427,0.04520748,117650.0,117640.0,0.35899902]
[1752862676190,0.01121023,117650.0,117640.0,0.35899902]
[1752862676406,0.01970951,117650.0,117640.0,0.35899902]
[1752862676613,0.01970951,117650.0,117640.0,0.37409902]
[1752862676817,0.01970951,117650.0,117640.0,0.45985864]
[1752862677528,0.01121023,117650.0,117640.0,0.45985864]
[1752862677967,0.01970951,117650.0,117640.0,0.45985864]
[1752862678372,0.028209,117650.0,117640.0,0.45985864]
[1752862678800,0.02820893,117650.0,117640.0,0.45985864]
[1752862679023,0.01970951,117650.0,117640.0,0.45985864]
[1752862679236,0.02820893,117650.0,117640.0,0.45985864]
[1752862679684,0.01970951,117650.0,117640.0,0.45985864]
[1752862679907,0.02820885,117650.0,117640.0,0.45985864]
[1752862680131,0.03670849,117650.0,117640.0,0.35899902]
[1752862680770,0.03670849,117650.0,117640.0,0.21783902]
[1752862681026,0.21520402,117650.0,117640.0,0.20933902]
[1752862681276,0.71250567,117650.0,117640.0,0.14088774]
[1752862681499,0.71250567,117650.0,117640.0,0.00012774]
[1752862681728,0.86512723,117650.0,117640.0,0.00012774]
[1752862682195,0.02550715,117610.0,117600.0,0.39963322]
[1752862682411,0.02550708,117610.0,117600.0,0.88283322]
[1752862682623,0.19556064,117610.0,117600.0,0.54283365]
[1752862682846,0.19556064,117610.0,117600.0,0.8998395]
[1752862682847,0.03400968,117610.0,117600.0,0.8998395]
[1752862683062,0.04251235,117610.0,117600.0,0.8998395]
[1752862683285,0.04251235,117610.0,117600.0,0.91438035]
[1752862683554,0.02550708,117610.0,117600.0,0.91453042]
[1752862683982,0.69476897,117610.0,117600.0,0.00015007]
[1752862684212,0.71016897,117610.0,117600.0,0.14131007]
[1752862684433,0.22449957,117610.0,117600.0,0.14231007]
[1752862684864,0.22449957,117610.0,117600.0,0.14331007]
[1752862685092,0.22449957,117610.0,117600.0,0.32188141]
[1752862685320,0.21599719,117610.0,117600.0,0.14127007]
[1752862685543,0.21599719,117610.0,117600.0,0.14131007]
[1752862685795,0.21136053,117610.0,117600.0,0.14131007]
[1752862688048,0.22993195,117610.0,117600.0,0.38112118]
[1752862688304,0.22993195,117610.0,117600.0,0.33042481]
[1752862688520,0.05987839,117610.0,117600.0,0.34743117]
[1752862688729,0.0085021,117610.0,117600.0,0.35890406]
[1752862689203,0.0092132,117610.0,117600.0,0.35890406]
[1752862689416,0.02621775,117610.0,117600.0,0.35890406]
[1752862689641,0.01771537,117610.0,117600.0,0.35890406]
[1752862690043,0.0085021,117610.0,117600.0,0.37450406]
[1752862690254,0.00921254,117620.0,117610.0,0.20406273]
[1752862690463,0.01771413,117620.0,117610.0,0.20610273]
[1752862690670,0.01771413,117620.0,117610.0,0.20907273]
[1752862691118,0.0007111,117630.0,117620.0,0.19554408]
[1752862691324,0.20473921,117630.0,117620.0,0.33305264]
[1752862691538,0.20473979,117630.0,117620.0,0.33008264]
[1752862691756,0.20669979,117630.0,117620.0,0.33008264]
[1752862692171,0.03596404,117630.0,117620.0,0.34708567]
[1752862692406,0.01771247,117630.0,117620.0,0.34704567]
[1752862692632,0.01771189,117640.0,117630.0,0.19552768]
[1752862692845,0.02621153,117640.0,117630.0,0.2090384]
[1752862693273,0.00921103,117640.0,117630.0,0.2090384]
[1752862693509,0.01771002,117650.0,117640.0,0.19551077]
[1752862693722,0.03470922,117650.0,117640.0,0.34701077]
[1752862693966,0.20470497,117650.0,117640.0,0.18055056]
[1752862694189,0.1917221,117640.0,117630.0,0.18702689]
[1752862694403,0.1956821,117640.0,117630.0,0.32806689]
[1752862694611,0.1987521,117640.0,117630.0,0.32806689]
[1752862695093,0.1967521,117640.0,117630.0,0.32806689]
[1752862695307,0.1927521,117640.0,117630.0,0.32806689]
[1752862695526,0.19623857,117630.0,117620.0,0.18704264]
[1752862695735,0.19819857,117630.0,117620.0,0.33854416]
[1752862695942,0.02817392,117630.0,117620.0,0.3470456]
[1752862696157,0.01771276,117630.0,117620.0,0.3470456]
[1752862696391,0.01771276,117630.0,117620.0,0.3500156]
[1752862696802,0.02621384,117630.0,117620.0,0.3500156]
[1752862697011,0.01771269,117630.0,117620.0,0.3500156]
[1752862697223,0.01771261,117630.0,117620.0,0.3500156]
[1752862697433,0.02621355,117630.0,117620.0,0.3500156]
[1752862697672,0.00921182,117630.0,117620.0,0.3500156]
[1752862698100,0.01771269,117630.0,117620.0,0.3500156]
[1752862698778,0.03281153,117640.0,117630.0,0.19552747]
[1752862699053,0.01771153,117640.0,117630.0,0.19756747]
[1752862699274,0.03471152,117640.0,117630.0,0.19756747]
[1752862699492,0.04321195,117640.0,117630.0,0.19756747]
[1752862699721,0.21322215,117640.0,117630.0,0.18906675]
[1752862699943,0.21422215,117640.0,117630.0,0.20606826]
[1752862700165,0.03500035,117640.0,117630.0,0.20606826]
[1752862700400,0.04421181,117640.0,117630.0,0.19756754]
[1752862700632,0.21422267,117640.0,117630.0,0.19756754]
[1752862700864,0.2076826,117640.0,117630.0,0.19756754]
[1752862701120,0.02917189,117640.0,117630.0,0.20606826]
[1752862701893,0.0017111,117640.0,117630.0,0.26199213]
[1752862702116,0.01021095,117640.0,117630.0,0.26199213]
[1752862702542,0.01871102,117640.0,117630.0,0.40263213]
[1752862702763,0.01871102,117640.0,117630.0,0.26199213]
[1752862703205,0.02721102,117640.0,117630.0,0.40263213]
[1752862703413,0.03571138,117640.0,117630.0,0.34670826]
[1752862703654,0.02721102,117640.0,117630.0,0.34670826]
[1752862704131,0.19375195,117640.0,117620.0,0.18704206]
[1752862704345,0.00921168,117630.0,117620.0,0.18704206]
[1752862704561,0.0262132,117630.0,117620.0,0.32972206]
[1752862704777,0.0451753,117630.0,117620.0,0.32972206]
[1752862705000,0.03667472,117630.0,117620.0,0.3297225]